Cogmind - Beta 13 @@@ ROGUE MODE // 2024.04.08 @ 20:58:37 Player: Patryk Z Result: Destroyed by H-55 Commando with Assault Rifle Performance ------------- Evolutions (3) 1500 Regions Visited (5) 1000 Robots Destroyed (65) 325 Value Destroyed (1715) 1715 Prototype IDs (4) 80 Alien Tech Used (0) 0 Bonus (-238) -238 TOTAL SCORE: 4382 Bonus ------- High Alert Combat Kills 86 Friendly Fire -324 Cogmind --------- Core Integrity 0/700 Matter 9/300 Energy 100/100 System Corruption 1% Temperature Cool (0) Movement Core (100) Ox1 Location -7/Storage Parts ------- > --- POWER (1) -------- (None) > --- PROPULSION (4) --- (None) > --- UTILITY (6) ------ Improved Signal Interpreter Improved Signal Interpreter Corruption Screen > --- WEAPON (2) ------- Precision Grenade Launcher > --- INVENTORY (5) ---- Light Nuclear Core Peak State ------------ > --- POWER ------------ Light Nuclear Core > --- PROPULSION ------- Hover Unit Airjet Airjet Improved Cesium-ion Thruster > --- UTILITY ---------- Cooling System Cooling System Improved Sensor Array Improved Signal Interpreter > --- WEAPON ----------- Gauss Rifle Gauss Rifle > --- INVENTORY -------- Light Nuclear Core Light Nuclear Core Improved Signal Interpreter Remote Datajack Remote Datajack [Rating: 34] Favorites ----------- Power Light Nuclear Core Engine Light Ion Engine Power Core Light Nuclear Core Propulsion Airjet Leg Aluminum Leg Wheel Compact Wheel Hover Unit Airjet Flight Unit Flight Unit Utility Signal Interpreter Device Cooling System Storage Small Storage Unit Processor Signal Interpreter Protection Light Armor Plating Weapon Light Assault Rifle Energy Gun Medium Laser Energy Cannon Heavy Particle Cannon Ballistic Gun Light Assault Rifle Ballistic Cannon Light Cannon Launcher Rocket Array Special Weapon Mining Laser Slashing Weapon Katana Build | -11 -10 -9 -8 -7 -7 ------- Run | Yrd Mat Mat Mat Fac Sto Slots Evolved 6 | . . 2 2 2 . Power . | . . . . . . Propulsion 2 | . . 2 . . . Utility 4 | . . . 2 2 . Weapon . | . . . . . . Parts Attached 91 | 14 11 31 12 6 17 Power 10 | 2 2 3 . 1 2 Engine 5 | 2 1 2 . . . Core 5 | . 1 1 . 1 2 Reactor . | . . . . . . Propulsion 25 | 4 2 13 1 2 3 Treads . | . . . . . . Leg 7 | . . 4 . . 3 Wheel 4 | 4 . . . . . Hover 9 | . 2 5 1 1 . Flight 5 | . . 4 . 1 . Utility 19 | 4 3 4 6 . 2 Device 10 | 3 1 2 4 . . Storage 1 | 1 . . . . . Processor 4 | . 1 . 1 . 2 Hackware . | . . . . . . Protection 4 | . 1 2 1 . . Artifact . | . . . . . . Weapon 37 | 4 4 11 5 3 10 Energy Gun 10 | 1 2 . 1 . 6 Energy Cannon 2 | . . . 2 . . Ballistic Gun 11 | 2 2 5 . 2 . Ballistic Cannon 1 | . . 1 . . . Launcher 3 | . . . . . 3 Special Weapon 6 | 1 . 3 . 1 1 Impact Weapon . | . . . . . . Slashing Weapon 4 | . . 2 2 . . Piercing Weapon . | . . . . . . Special Melee Weapon . | . . . . . . Unidentified Prototypes 4 | . . . 1 1 2 Parts Lost 38 | 7 . 10 2 8 11 Power 5 | 1 . 1 . 1 2 Propulsion 12 | 1 . 4 1 3 3 Utility 6 | 1 . 1 1 1 2 Weapon 15 | 4 . 4 . 3 4 Highest Loss Streak 11 | 7 . 9 2 7 11 To Critical Strikes . | . . . . . . Average Slot Usage (%) 79 | . 82 80 91 78 58 Engine 2 | . 12 2 . . . Core 6 | . 1 8 9 6 5 Leg 2 | . . 1 . . 9 Wheel 3 | . 26 . . . . Hover 17 | . 1 20 35 26 . Flight 4 | . . 11 . . . Device 11 | . 13 4 12 22 13 Processor 9 | . . 11 9 7 18 Protection 4 | . 11 3 7 . . Energy Gun 1 | . 4 . 4 . 2 Ballistic Gun 6 | . 6 9 . 13 . Special Weapon 1 | . . 3 . . 3 Slashing Weapon 2 | . . 3 9 . . Naked Turns . | . . . . . . Heaviest Build 19 | 12 15 12 19 19 19 Greatest Support 32 | 26 26 32 32 30 30 Greatest Overweight (x) 5 | . . 2 . 5 5 Average Overweight (x) . | . . . . . . Largest Inventory Capacity 8 | 8 8 5 5 5 5 Average Capacity 5 | 7 5 5 5 5 5 Most Carried 7 | 7 5 5 5 5 5 Average Carried 4 | 6 2 4 3 4 4 Final Capacity 8 | 8 5 5 5 5 5 Final Carried 5 | 1 5 5 5 4 1 Class Distribution -------------------- 79% | Mutant 20% | Scavenger-Mutant Dominant Class ---------------- Mutant | -10/Materials Mutant | -9/Materials Mutant | -8/Materials Mutant | -7/Factory Scavenger-Mutant | -7/Storage Resources | -11 -10 -9 -8 -7 -7 ----------- Run | Yrd Mat Mat Mat Fac Sto Matter Collected 1171 | 287 161 283 100 162 178 Remotely . | . . . . . . Salvage Created 1950 | 105 277 373 134 157 904 Parts 99 | 6 12 32 8 7 34 Haulers Intercepted 2 | . . . . . 2 Recyclers Shooed 3 | 1 . 2 . . . Parts Field Recycled . | . . . . . . Retrieved Matter . | . . . . . . Parts Self-Destructed . | . . . . . . Prevented . | . . . . . . Kills | -11 -10 -9 -8 -7 -7 ------- Run | Yrd Mat Mat Mat Fac Sto Combat Hostiles Destroyed 35 | . 3 11 2 2 17 Melee 2 | . . 1 1 . . Guns 12 | . 3 6 . 2 1 Cannons 4 | . . 3 1 . . AOE 17 | . . 1 . . 16 Classes Destroyed 14 | 2 2 4 . 1 5 Worker 3 | . . 2 . . 1 Builder 3 | . . . . . 3 Tunneler 4 | 2 . 1 . 1 . Hauler 2 | . . . . . 2 Recycler 7 | 1 1 1 . 1 3 Mechanic 3 | . . 1 . . 2 Operator 1 | . . . . . 1 Watcher 5 | . 2 1 2 . . Swarmer 8 | . . 6 1 1 . Grunt 18 | . 3 3 . . 12 Duelist 1 | . . . . . 1 Sentry 6 | . . 2 1 . 3 Hunter 1 | . . . . . 1 Programmer 1 | . . . . 1 . Thug 2 | . . . . . 2 Best Kill Streak 27 | 3 3 6 1 2 27 Combat Bots Only 15 | . 2 4 1 1 15 Max Kills in Single Turn 9 | 1 1 3 1 2 9 Gunslinging . | . . . . . . Exploded 4 | . . 1 . . 4 Melee 1 | . . 1 1 . . Uniques/NPCs Destroyed . | . . . . . . Combat | -11 -10 -9 -8 -7 -7 -------- Run | Yrd Mat Mat Mat Fac Sto Hostile Shots Fired 475 | 14 14 96 29 78 244 Missed 177 | . 7 31 4 22 113 Damage Taken 3846 | 539 113 838 232 830 1294 Core 1101 | 146 68 161 16 234 476 Absorbed by Shields . | . . . . . . Regen/Repaired (Parts) 83 | . . 45 . 38 . Core Remaining (%) 52 | 41 14 59 97 . . Volleys Fired 146 | 12 19 62 13 14 26 Largest 2 | 2 2 2 2 2 2 Hottest 138 | 100 80 100 136 56 138 Shots Fired 211 | 20 29 88 18 25 31 Gun 143 | 18 29 50 9 24 13 Cannon 23 | . . 14 9 . . Launcher 14 | . . . . . 14 Special 31 | 2 . 24 . 1 4 Kinetic 106 | 8 10 64 . 24 . Thermal 67 | 12 . 24 18 . 13 Explosive 14 | . . . . . 14 Electromagnetic 19 | . 19 . . . . Robot Hit Streak 14 | 4 6 8 11 4 14 Robot Miss Streak 3 | 2 3 3 3 3 2 Penetration Max 1 | . . . . 1 . Secondary Targets . | . . . . . . Shots Hit Robots 125 | 13 19 48 12 13 20 Core Hits 158 | 6 18 19 5 8 102 Critical Kills 1 | . . 1 . . . Critical Parts Destroyed 2 | . 1 . . 1 . Critical Strikes 7 | . 1 1 2 1 2 Burn 3 | . . . 1 . 2 Destroy 3 | . 1 1 . 1 . Sever 1 | . . . 1 . . Melee Attacks 43 | . . 16 27 . . Impact . | . . . . . . Slashing 43 | . . 16 27 . . Piercing . | . . . . . . Sneak Attacks 2 | . . 2 . . . Combat Hostiles . | . . . . . . Follow-up Attacks 2 | . . 1 1 . . Damage Inflicted 5490 | 163 352 1063 313 408 3191 Guns 1296 | 139 303 283 40 396 135 Cannons 291 | . . 116 175 . . Explosions 3408 | . . 352 . . 3056 Melee 360 | . . 262 98 . . Ramming 63 | . 49 2 . 12 . Kinetic 952 | 39 118 399 . 396 . Thermal 874 | 124 . 400 215 . 135 Explosive 3056 | . . . . . 3056 Electromagnetic 185 | . 185 . . . . Impact . | . . . . . . Slashing 360 | . . 262 98 . . Piercing . | . . . . . . Highest Corruption 6 | . 6 . . 1 1 Average Corruption 2 | . 4 . . 1 1 Corruption Purged . | . . . . . . Corruption Blocked . | . . . . . . Effects 17 | . 12 . . 1 4 Message Errors 6 | . 3 . . 1 2 Matter Fused 6 | . 5 . . . 1 Heat Flow Errors 1 | . 1 . . . . Energy Discharges 2 | . 2 . . . . Parts Rejected 1 | . 1 . . . . Data Loss (minor) 1 | . . . . . 1 Overload Shots . | . . . . . . Overflow Damage 259 | . . 237 . . 22 Projectiles . | . . . . . . Explosions 254 | . . 232 . . 22 Melee 5 | . . 5 . . . Knockbacks 2 | . . 2 . . . Impact . | . . . . . . Kinetic 2 | . . 2 . . . Secondary . | . . . . . . Self-Inflicted Damage 141 | . 20 88 . 6 27 Shots 2 | . . 1 . . 1 Rammed 24 | . 21 . . 3 . Targets Rammed 27 | . 21 3 . 3 . Kicked 3 | . . 3 . . . Crushed . | . . . . . . Highest Temperature 298 | 80 273 298 216 . 198 Average Temperature 82 | 38 67 92 83 . 70 Received Heat Transfer 744 | . 54 312 18 . 360 Effects 1 | . . . 1 . . Energy Bleed 1 | . . . 1 . . Siege Activations . | . . . . . . Robots Corrupted . | . . . . . . Combat Hostiles . | . . . . . . Parts Fried 3 | . 3 . . . . Impact Corruptions . | . . . . . . Robots Melted . | . . . . . . Combat Hostiles . | . . . . . . Parts Melted 3 | 1 . . 2 . . Heat Transferred 1460 | 346 . 300 407 . 407 Parts Sabotaged . | . . . . . . Parts Stolen . | . . . . . . Parts Stripped . | . . . . . . Power Chain Reactions . | . . . . . . Alert | -11 -10 -9 -8 -7 -7 ------- Run | Yrd Mat Mat Mat Fac Sto Peak Influence 691 | 15 151 208 247 71 691 Initial 87 | . . . 87 28 6 Average 61 | 4 30 54 122 29 219 Maximum Alert Level 2 | . . 1 1 . 2 Low Security (%) 93 | 100 100 99 76 100 64 Level 1 3 | . . . 23 . 2 Level 2 3 | . . . . . 33 Level 3 . | . . . . . . Level 4 . | . . . . . . Level 5 . | . . . . . . High Security . | . . . . . . Max Security . | . . . . . . Squads Dispatched 6 | . . 1 . 1 4 Investigation 1 | . . 1 . . . Extermination 1 | . . . . 1 . Reinforcement 2 | . . . . . 2 Assault 2 | . . . . . 2 Garrison . | . . . . . . Intercept . | . . . . . . Searches Triggered . | . . . . . . Construction Impeded 1 | . . . . . 1 Haulers Reinforced 1 | . . . . . 1 Active Scanning Responses . | . . . . . . Cargo Convoy Interrupts . | . . . . . . Stealth | -11 -10 -9 -8 -7 -7 --------- Run | Yrd Mat Mat Mat Fac Sto Distress Signals 5 | . 2 . . . 3 Communications Jammed . | . . . . . . Distress Signals . | . . . . . . Times Spotted 72 | 4 7 16 9 9 27 Peak Tracking Total 8 | 4 3 5 4 6 8 Tactical Retreats 6 | . . 2 3 1 . Traps | -11 -10 -9 -8 -7 -7 ------- Run | Yrd Mat Mat Mat Fac Sto Traps Triggered 1 | . 1 . . . . Indirectly . | . . . . . . Trap Hack Attempts . | . . . . . . Triggered . | . . . . . . Disarmed . | . . . . . . Reprogrammed . | . . . . . . Reused . | . . . . . . Traps Extracted . | . . . . . . Installed . | . . . . . . Triggered . | . . . . . . Machines | -11 -10 -9 -8 -7 -7 ---------- Run | Yrd Mat Mat Mat Fac Sto Machines Disabled 6 | . 1 2 . . 3 Max in Single Turn 2 | . 1 1 . . 2 Machines Repaired . | . . . . . . Machines Dismantled . | . . . . . . Machines Sabotaged . | . . . . . . Overloaded Fab Kills . | . . . . . . Hacking | -11 -10 -9 -8 -7 -7 --------- Run | Yrd Mat Mat Mat Fac Sto Machines Accessed 12 | . 2 4 1 3 2 Terminals 7 | . 2 2 . 2 1 Fabricators . | . . . . . . Repair Stations 2 | . . 1 . 1 . Recycling Units 2 | . . . 1 . 1 Scanalyzers 1 | . . 1 . . . Garrison Access . | . . . . . . Total Hacks 25 | . 3 13 1 5 3 Successful 16 | . 1 10 1 2 2 Failed 9 | . 2 3 . 3 1 Catastrophic 1 | . 1 . . . . Database Lockouts . | . . . . . . Manual 9 | . 3 4 . 1 1 Terminals 10 | . 3 4 . 2 1 Fabricators . | . . . . . . Repair Stations 8 | . . 5 . 3 . Recycling Units 3 | . . . 1 . 2 Scanalyzers 4 | . . 4 . . . Garrison Access . | . . . . . . Terminal Hacks 4 | . 1 2 . . 1 Record 1 | . . . . . 1 Alert Level 1 | . . 1 . . . Hauler Manifests 1 | . . 1 . . . Registered Components 1 | . 1 . . . . Fabricator Hacks . | . . . . . . Repair Station Hacks 6 | . . 4 . 2 . Scan Component 3 | . . 2 . 1 . Repair 3 | . . 2 . 1 . Recycling Unit Hacks 2 | . . . 1 . 1 Report Inventory 2 | . . . 1 . 1 Scanalyzer 4 | . . 4 . . . Insert Component 3 | . . 3 . . . Analyze 1 | . . 1 . . . Garrison Access Hacks . | . . . . . . Unauthorized Hacks . | . . . . . . Terminals . | . . . . . . Fabricators . | . . . . . . Repair Stations . | . . . . . . Recycling Units . | . . . . . . Scanalyzers . | . . . . . . Garrison Access . | . . . . . . Data Cores Recovered . | . . . . . . Used . | . . . . . . Hacking Detections 11 | . 2 4 . 3 2 Full Trace Events 2 | . . 2 . . . Feedback Events . | . . . . . . Feedback Blocked . | . . . . . . Robot Schematics Acquired . | . . . . . . Robots Built . | . . . . . . Authchips . | . . . . . . Time . | . . . . . . Total Robot Build Rating . | . . . . . . Part Schematics Acquired 1 | . . 1 . . . Parts Built . | . . . . . . Authchips . | . . . . . . Time . | . . . . . . Total Part Build Rating . | . . . . . . Parts Repaired 3 | . . 2 . 1 . Time 90 | . . 52 . 38 . Parts Recycled . | . . . . . . Recycled Matter . | . . . . . . Retrieved Matter . | . . . . . . Retrieved Components . | . . . . . . Parts Scanalyzed 1 | . . 1 . . . Part Schematics Acquired 1 | . . 1 . . . Parts Damaged . | . . . . . . Bothacking | -11 -10 -9 -8 -7 -7 ------------ Run | Yrd Mat Mat Mat Fac Sto Used RIF Installer . | . . . . . . Robots Hacked 3 | . . . . 1 2 Non-combat 2 | . . . . . 2 Combat 1 | . . . . 1 . Robot Hacks Applied 3 | . . . . 1 2 parse_system 1 | . . . . 1 . no_distress 2 | . . . . . 2 Relay Couplers Released . | . . . . . . Fabnet Peak Effective % . | . . . . . . Robots Rewired . | . . . . . . Allies Hacked . | . . . . . . Hacks Repelled . | . . . . . . Allies | -11 -10 -9 -8 -7 -7 -------- Run | Yrd Mat Mat Mat Fac Sto Total Allies 2 | . . . . . 2 Largest Group 2 | . . . . . 2 Highest-Rated Group 62 | . . . . . 62 Highest-Rated Ally 31 | . . . . . 31 Total Orders . | . . . . . . Ally Attacks 5 | . . . . . 5 Total Damage 62 | . . . . . 62 Kills . | . . . . . . Allies Corrupted . | . . . . . . Allies Melted . | . . . . . . Intel | -11 -10 -9 -8 -7 -7 ------- Run | Yrd Mat Mat Mat Fac Sto Robot Analysis Total . | . . . . . . Derelict Logs Recovered . | . . . . . . Drone Launches . | . . . . . . Drone Recoveries . | . . . . . . Exploration | -11 -10 -9 -8 -7 -7 ------------- Run | Yrd Mat Mat Mat Fac Sto Turns Passed 4001 | 1153 426 1069 504 410 439 Spaces Moved 1902 | 55 364 513 338 394 238 Core 127 | 5 . 8 . 28 86 Treads . | . . . . . . Legs 169 | . . 17 . . 152 Wheels 372 | 50 322 . . . . Hover 990 | . 42 244 338 366 . Flight 244 | . . 244 . . . Fastest Speed 34 | 50 56 34 48 48 50 Average Speed 65 | 88 86 47 48 50 116 Slowest Speed 300 | 100 90 200 52 300 300 Overloaded Moves . | . . . . . . Propulsion Burnouts . | . . . . . . Robots Hopped 3 | . . 3 . . . Cave-ins Triggered . | . . . . . . Exploration Rate (%) 27 | 8 51 31 20 10 42 Regions Visited 5 Branch Regions 1 Pre-discovered Areas . | . . . . . . Known Exits Taken 4 | . 1 1 1 1 . Unknown Exits Taken 1 | 1 . . . . . Scrap Searched . | . . . . . . Spaces Dug 34 | . . 23 11 . . Terrain Destroyed 218 | . . 59 12 . 147 Melee 17 | . . 6 11 . . Projectile 18 | . . 17 1 . . AOE 183 | . . 36 . . 147 Terrain Rammed . | . . . . . . Walls Destroyed . | . . . . . . Machines Disabled . | . . . . . . Actions | -11 -10 -9 -8 -7 -7 --------- Run | Yrd Mat Mat Mat Fac Sto Total 4336 | 1134 451 1188 627 581 355 Wait 2049 | 1044 16 531 229 160 69 Move 1891 | 54 363 506 337 393 238 Hop 3 | . . 3 . . . Pick Up 46 | 9 12 16 8 . 1 Fast Attach 37 | 4 1 18 2 4 8 Attach 38 | 9 6 7 7 1 8 Detach 9 | 1 1 2 1 . 4 Swap 16 | 1 4 6 3 1 1 Drop 38 | . 8 20 5 5 . Fire 146 | 12 19 62 13 14 26 Melee 36 | . . 14 22 . . Ram 24 | . 21 . . 3 . Kick 3 | . . 3 . . . Crush . | . . . . . . Escape Stasis . | . . . . . . Rewire . | . . . . . . Trap . | . . . . . . Miscellaneous . | . . . . . . Route ------- -11/Scrapyard -10/Materials -9/Materials -8/Materials -7/Factory -7/Storage History --------- Turn | Location | Event 9 | -11/Scrapyard | Discovered new exit (range 16) 1122 | -11/Scrapyard | Assembled infested the area 1141 | -11/Scrapyard | Core integrity fell below 50% 1154 | -11/Scrapyard | Entered Materials 1171 | -10/Materials | Lost 7 parts (1p1n1u4w) 1174 | -10/Materials | Build established: Mutant 1507 | -10/Materials | Discovered new exit (range 13) 1539 | -10/Materials | Core integrity fell below 20% 1579 | -10/Materials | Identified exit to Materials 1580 | -10/Materials | Entered another Materials area 1580 | -9/Materials | Evolved 2 slots: Propulsion x2 2068 | -9/Materials | Repaired Lgt. Armor Plating 2095 | -9/Materials | Repaired Mining Laser 2230 | -9/Materials | Build established: Scavenger-Mutant 2370 | -9/Materials | Lost 9 parts (1p4n1u3w) 2625 | -9/Materials | Discovered new exit (range 16) 2632 | -9/Materials | Identified exit to Materials 2649 | -9/Materials | Entered another Materials area 2649 | -8/Materials | Evolved 2 slots: Utility x2 2765 | -8/Materials | Build established: Mutant 3105 | -8/Materials | Discovered new exit (range 15) 3153 | -8/Materials | Identified exit to Factory 3153 | -8/Materials | Entered Factory 3153 | -7/Factory | Evolved 2 slots: Utility x2 3183 | -7/Factory | Discovered new exit (range 5) 3184 | -7/Factory | Identified exit to Storage 3553 | -7/Factory | Repaired Airjet? 3563 | -7/Factory | Entered Storage 3580 | -7/Storage | Lost 7 parts (1p2n1u3w) 3772 | -7/Storage | Met a pair of Derelict thieves 3788 | -7/Storage | Found Prototype Launcher 3788 | -7/Storage | Identified Rocket Array 3897 | -7/Storage | Destroyed 15 combat bots 3951 | -7/Storage | Core integrity fell below 50% 3992 | -7/Storage | Core integrity fell below 20% 4002 | -7/Storage | Destroyed by H-55 Commando with Assault Rifle Last Messages --------------- 03970_ The unstable cave ceiling collapses. 03970_ K-01 Serf destroyed. 03970_ K-01 Serf collects debris. 03973_ Slug penetrates Wall. 03975_ K-01 Serf collects debris. 03976_ Critical hit (Burn: +37). 03976_ R-06 Scavenger collects Lgt. Ion Engine. 03977_ R-06 Scavenger collects Sml. Matter Pod. 03979_ K-01 Serf collects debris. 03980_ Cooling System destroyed. 03986_ System corrupted: Component data lost. 03986_ Penetrated by Slug. 03988_ Hvy. Laser destroyed. 03989_ Penetrated by Slug. 03991_ H-55 Commando suffers critical hit (Burn). 03994_ Hvy. Laser destroyed. 03995_ Slug penetrates Wall. 03997_ U-05 Engineer lays Concrete. 03999_ U-05 Engineer builds a Wall. 04000_ Lgt. Nuclear Core destroyed. Map ----- +----------------------------------------------------+ | ????????????????????????????????????????????????? | | ????????????????????????????????????????????????? | | ????????????????????????????????????????????????? | | ????????????????????????????????????????????????? | | ????????????????????????????????????????????????? | | ????????????????????????????????????????????????? | | ????????????????????????????????????????????????? | | ????????????????????????????????????????????????? | | ????????????????????????????????????????????????? | | ????????????????????????????????????????????????? | | ????????????????????????????????????????????????? | | ????????????????????????????????????????????????? | | ????????????????????????????????????????????????? | | ?????????????????????????????????????????????#### | | ??????????????????????????????????############ | | ??????????????????????????????????# # "" | | ??????????????????????????????????# ## "? | | ??????????????????????????????????# ## "? | | ??????????????????????????????????# ## "" | | ??????????????????????????????????# """ """ " | | ??????????????????????????????????# """ """ | | ??????????????????????????????????# """ " " | | ??????????????????????????????? # u | | ????????# ################# h##" ### | | ????????#a ^ YY # [ | | ??????? + @ g % | | ????????# ^ g # # | | ????????# ################# ######## """ | | ??????????????????????????????? ????# "Y" | | ?????????????????????????????????? """ ???## | | ??????????????????????????????????????????#T | | ??????????????????????????????????????????## | | ??????????????????????????????????????????# | | ?????????????????????????????????##???????#### # | | ?????????????????????????????????# ##### | | ?????????????????????????????????# ^ | | ?????????????????????????????????# | | ?????????????????????????????????# ##### | | ?????????????????????????????????##???????### | | ??????????????????????????????????????????# | | ??????????????????????????????????????????# | | ????????????????????????????????????????? | | ???????????????????????????????????????"" | | ??????????????????????????????????????? | | ??????????????????????????????????????#### | | ???????????????????????????????????????? | | ???????????????????????????????????????? # | | ??????????????????????????????????????? #+ # | | ??????????????????????????????????????? ?? | | ??????????????????????????????????????? ?? | +----------------------------------------------------+ Best States ------------- Heat Dissipation 75 Energy Generation 15 Energy Capacity 250 Matter Stores 300 Matter Capacity 300 Sight Range 16 Robot Scan Range 15 Terrain Scan Range 16 Terrain Scan Density 10 Corruption Block 4 Armor Coverage 150 Evasion (%) 63 Item Schematics ----------------- Mining Laser | -9/Materials | Scanalyzed Robot Schematics ------------------ None Fabricated ------------ Nothing Alien Tech Used ----------------- None Achievements -------------- Curiosity Killed The Cat I Spy Challenges ------------ None Game ------ Seed HardcellInsulationAmplifier Manual? 0 Play Time 01:06:22 Cumulative 12.9 hours Start 2024.04.08 @ 19:49:55 End 2024.04.08 @ 20:58:37 Sessions 1 Manual Loads 0 Difficulty Rogue Special Mode None Game No. 10 Rogue 10 Adventurer 0 Explorer 0 Win Type - Total 0 Types 0/0/0/0/0/0/0/0/0 Lore% 6 Gallery% 14 Achievement% 17 Wizard Run 0 Options --------- Layout 1 ASCII 0 Keyboard 0 Movement Mouse Keybinds 0 Fullscreen 2 Font 20/X11 Map View 64x42 Zoom Use 0% Tactical HUD 1 Map Filters NONE Filters NONE Steam 1 RUN: 079c3266-9d7d-4044-b203-e793494e4e97